bitfinex-derivatives/quotes_ETHF0:USTF0_20251013
["timestamp","ask_amount","ask_price","bid_price","bid_amount"]
[1760369314469,3.66349011,4115.7,4115.5,0.3301]
[1760369314680,3.2078,4115.6,4115.5,1.244]
[1760369314978,6.30114382,4115.6,4115.5,1.244]
[1760369315477,6.30114382,4115.6,4115.5,0.33290431]
[1760369315678,6.30114382,4115.6,4115.0,0.3301]
[1760369315679,0.43702,4115.1,4115.0,0.3301]
[1760369315876,3.64482,4115.1,4115.0,0.3301]
[1760369316172,0.43707,4114.6,4114.5,0.3301]
[1760369316474,0.43711,4114.2,4113.5,0.3655]
[1760369316681,0.00280865,4114.2,4114.1,0.9139]
[1760369316974,6.35138272,4114.2,4114.1,0.9139]
[1760369318182,0.43712,4114.1,4113.7,0.9139]
[1760369318383,1.09281,4114.1,4113.5,0.3655]
[1760369318571,3.64497,4113.6,4113.5,0.3655]
[1760369318974,6.83833538,4113.6,4113.5,1.2794]
[1760369320569,6.40116538,4113.6,4113.5,1.2794]
[1760369320985,3.2078,4113.6,4113.5,1.2794]
[1760369322277,3.2078,4113.6,4113.5,1.5294]
[1760369325181,3.21060865,4114.2,4114.1,0.9139]
[1760369325379,3.21060865,4114.2,4114.1,1.35102]
[1760369325573,0.00280865,4114.2,4114.1,1.35102]
[1760369325974,0.0169,4114.5,4114.4,1.37969]
[1760369326282,3.2078,4115.2,4115.1,1.37962]
[1760369326472,3.2078,4115.2,4115.1,1.62962]
[1760369326778,3.2078,4115.2,4115.1,1.1926]
[1760369326983,3.20954575,4115.2,4115.1,1.19449772]
[1760369327679,3.20954575,4115.2,4115.1,0.94449772]
[1760369330179,3.64654575,4115.2,4115.1,0.94449772]
[1760369331085,3.20954575,4115.2,4115.1,1.38151772]
[1760369332283,3.20954575,4115.2,4115.1,0.94449772]
[1760369333380,3.20954575,4115.2,4115.1,1.19449772]
[1760369336586,3.64654575,4115.2,4115.1,0.94449772]
[1760369336887,3.20954575,4115.2,4115.1,1.38151772]
[1760369337277,3.20954575,4115.2,4115.1,1.63151772]
[1760369338483,0.00174575,4115.2,4115.1,1.63151772]
[1760369339085,0.00174575,4115.2,4115.1,4.83931772]
[1760369341285,3.2078,4115.8,4115.7,0.43695]
[1760369341495,3.2078,4115.8,4115.7,1.58255]
[1760369342482,3.21058372,4115.8,4115.7,1.58255]
[1760369342683,0.00278372,4115.8,4115.7,1.58255]
[1760369344887,0.00278372,4115.8,4115.7,1.33255]
[1760369345090,0.00278372,4115.8,4115.7,1.58255]
[1760369345782,3.2078,4116.3,4115.7,1.58255]
[1760369345985,3.2078,4116.8,4116.7,1.33245]
[1760369346184,3.2078,4116.8,4116.7,1.58245]
[1760369346893,3.20990681,4116.8,4116.7,1.58245]
[1760369347787,3.64674681,4116.8,4116.7,0.8956]
[1760369347988,0.43686,4116.6,4116.5,0.3434]
[1760369348189,0.43686,4116.6,4116.5,0.29141312]
[1760369348383,3.5910366,4116.6,4116.5,0.29141312]
[1760369348583,4.16330747,4116.6,4116.5,0.29141312]
[1760369349792,3.1541766,4116.6,4116.5,0.72828312]
[1760369350098,0.43686,4116.6,4116.5,1.18701312]
[1760369350298,3.20990681,4116.8,4116.7,0.43685]
[1760369350496,3.20990681,4116.8,4116.7,1.33245]
[1760369351198,0.00210681,4116.8,4116.7,1.33245]
[1760369351589,3.2078,4117.3,4117.2,1.33239]
[1760369351898,0.25,4118.8,4118.4,0.8956]
[1760369352093,3.2078,4118.5,4118.4,0.8956]
[1760369352487,3.78217831,4118.5,4118.4,0.89850887]
[1760369352900,3.20950966,4118.5,4118.4,0.89850887]
[1760369353293,6.92459846,4118.5,4118.4,0.00290887]
[1760369353490,6.92459846,4118.5,4117.0,0.3434]
[1760369353491,0.5936,4117.5,4117.0,0.3434]
[1760369353696,3.2078,4117.5,4117.1,0.25]
[1760369353895,0.5936,4117.3,4117.1,0.25]
[1760369354193,1.03038,4117.3,4117.1,0.25]
[1760369354697,1.03038,4117.3,4117.1,0.25297987]
[1760369354897,0.43678,4117.3,4117.1,0.25297987]
[1760369355091,0.43678,4117.3,4117.2,0.8956]
[1760369356593,0.43678,4117.3,4117.1,0.00297987]
[1760369356594,0.6021,4117.2,4117.1,0.00297987]
[1760369357495,0.43678,4117.3,4117.2,0.9451]
[1760369357896,0.6021,4117.2,4117.1,0.00297987]
[1760369358802,0.6021,4117.2,4117.1,0.94807987]
[1760369359299,0.6021,4117.2,4117.1,0.00297987]
[1760369359999,0.6021,4117.2,4117.1,0.94807987]
[1760369360199,0.6021,4117.2,4117.1,0.00297987]
[1760369361201,1.03889,4117.2,4117.1,0.00297987]
[1760369362600,0.43679,4117.2,4117.1,0.94807987]
[1760369362794,0.43679,4117.2,4117.1,1.38487987]
[1760369363198,0.43679,4117.2,4117.1,0.94807987]
[1760369364619,3.2078,4117.5,4117.1,0.94807987]
[1760369364620,3.2078,4117.5,4117.2,0.9451]
[1760369364901,3.2078,4117.5,4117.1,0.94807987]
[1760369365093,0.43679,4117.3,4117.2,1.38189]
[1760369365294,0.43679,4117.3,4117.2,0.9451]
[1760369366103,0.43679,4117.2,4117.1,0.25297987]
[1760369366492,1.03889,4117.2,4117.1,0.00297987]
[1760369367099,3.2078,4117.5,4117.2,0.9451]
[1760369367296,0.43677,4117.4,4117.3,0.9451]
[1760369368596,1.0918,4117.9,4117.5,0.3438]
[1760369368804,0.43675,4117.6,4117.5,0.3438]
[1760369369499,0.43675,4117.6,4117.5,1.2889]
[1760369370503,0.43674,4117.7,4117.6,1.38185]
[1760369370898,1.66634,4117.7,4117.6,0.9451]
[1760369371100,1.66634,4117.7,4117.6,1.38185]
[1760369371801,1.66634,4117.7,4117.6,0.9451]
[1760369372510,1.2296,4117.7,4117.6,1.38185]
[1760369372804,3.2078,4118.0,4117.9,1.63562]
[1760369373006,3.8201,4118.0,4117.9,2.58072]
[1760369373202,4.25681,4118.0,4117.9,2.58072]
[1760369373507,4.87411,4118.0,4117.9,2.58072]
[1760369374208,0.6123,4117.4,4117.1,0.00297987]
[1760369374405,3.2078,4118.0,4117.8,1.1989]
[1760369374702,3.2078,4118.0,4117.5,0.3438]
[1760369374703,3.64451,4118.0,4117.9,1.63562]
[1760369375004,4.25681,4118.0,4117.9,2.58072]
[1760369375210,3.8201,4118.0,4117.9,2.58072]
[1760369375414,4.87411,4118.0,4117.9,2.144]
[1760369375624,1.8317,4117.6,4117.5,1.38186]
[1760369375823,1.8317,4117.6,4117.5,1.63186]
[1760369376007,1.2296,4117.6,4117.5,1.63186]
[1760369376212,1.2296,4117.6,4117.5,2.21566]
[1760369376517,1.2296,4117.6,4117.5,2.55946]
[1760369377212,0.6123,4117.6,4117.5,3.17456]
[1760369378618,1.04905,4117.6,4117.5,3.17456]
[1760369378820,0.6123,4117.6,4117.5,3.17456]
[1760369379018,1.04905,4117.6,4117.5,3.17456]
[1760369379616,0.6123,4117.6,4117.5,3.17456]
[1760369379818,0.6123,4117.8,4117.7,1.63563]
[1760369380016,3.2078,4118.0,4117.9,2.58072]
[1760369380223,4.25681,4118.0,4117.9,2.83072]
[1760369380522,0.6123,4118.0,4117.9,2.83072]
[1760369380720,1.66629,4118.2,4118.1,2.144]
[1760369381019,1.66629,4118.2,4117.8,1.96563]
[1760369381020,1.66632,4117.9,4117.8,1.96563]
[1760369381316,1.66638,4117.3,4117.2,5.17349]
[1760369381515,0.83527149,4117.3,4117.2,5.42349]
[1760369381920,1.27205149,4117.3,4117.2,5.42349]
[1760369382320,1.27205149,4117.3,4117.2,4.58969]
[1760369382618,1.27205149,4117.3,4117.2,5.42349]
[1760369383716,0.83527149,4117.3,4117.2,5.42349]
[1760369384215,0.3324,4117.7,4117.6,1.1989]
[1760369384419,1.10154,4117.7,4117.6,1.7789]
[1760369385222,1.10154,4117.7,4117.6,1.1951]
[1760369386822,1.28104,4117.7,4117.6,1.1951]
[1760369387024,1.10154,4117.7,4117.6,1.1951]
[1760369387325,1.10154,4117.7,4117.6,1.7869]
[1760369390527,1.10154,4117.7,4117.6,2.22365]
[1760369390727,1.10154,4117.7,4117.6,0.25]
[1760369390728,1.27904,4117.7,4117.6,0.25]
[1760369390923,0.1775,4117.4,4117.2,0.8507]
[1760369391124,1.00459,4117.2,4117.0,0.7806]
[1760369391330,1.00459,4117.2,4117.1,1.10367987]
[1760369391522,0.5678,4117.2,4117.1,0.85367987]
[1760369391724,1.18209,4117.2,4117.1,0.00297987]
[1760369391926,1.18209,4117.2,4117.1,0.25297987]
[1760369392825,1.18209,4117.2,4117.1,0.00297987]
[1760369393432,4.33711873,4117.2,4117.1,0.00297987]
[1760369394935,4.15961873,4117.2,4117.1,0.85367987]
[1760369395623,3.59181873,4117.2,4117.1,2.07027987]
[1760369395828,3.87571873,4117.2,4117.1,2.07027987]
[1760369396331,4.15961873,4117.2,4117.1,2.07027987]
[1760369396733,4.33711873,4117.2,4117.1,0.85367987]
[1760369398234,4.15961873,4117.2,4117.1,0.85367987]
[1760369398632,4.33711873,4117.2,4117.1,0.00297987]
[1760369399532,4.33711873,4117.2,4117.1,0.85367987]
[1760369399734,4.15961873,4117.2,4117.1,0.85367987]
[1760369399934,3.59181873,4117.2,4117.1,2.50707987]
[1760369400138,0.2839,4117.5,4117.4,2.50407]
[1760369400431,3.20950966,4118.5,4118.4,0.43667]
[1760369400632,0.00170966,4118.5,4118.4,2.75297]
[1760369401038,3.2078,4119.0,4118.9,2.50391]
[1760369401231,3.2078,4119.0,4118.9,2.75291]
[1760369401531,0.43652,4119.8,4119.5,0.77865]
[1760369401731,0.72042,4119.8,4119.7,1.462]
[1760369401932,0.002254,4119.8,4119.7,2.0673]
[1760369402835,0.002254,4119.8,4119.7,1.456]
[1760369403138,3.2078,4120.5,4120.4,1.28715]
[1760369403433,3.2078,4120.5,4120.0,0.3421]
[1760369403434,6.35290872,4120.5,4120.0,0.3421]
[1760369403634,0.43651,4119.9,4119.5,3.5499]
[1760369403838,6.35290872,4120.5,4118.5,2.50160235]
[1760369403839,0.61403,4119.7,4119.6,0.249]
[1760369404039,0.43662,4118.8,4118.7,0.8507]
[1760369404333,0.43667,4118.4,4117.8,4.0585]
[1760369404538,6.32808888,4118.8,4118.5,0.3421]
[1760369404832,0.43661,4119.0,4118.6,0.8507]
[1760369405028,0.43661,4119.0,4118.5,0.3421]
[1760369405029,0.43661,4119.0,4118.7,0.249]
[1760369405231,3.64442,4118.8,4118.6,0.8507]
[1760369405431,0.61413,4118.7,4118.6,0.249]
[1760369405631,3.22608609,4118.7,4118.6,1.0997]
[1760369406236,0.00240032,4119.7,4119.5,0.3421]
[1760369406427,0.00240032,4119.7,4119.6,0.8507]
[1760369406741,0.43656,4119.4,4119.0,0.249]
[1760369407035,3.12533529,4119.3,4119.0,1.4418]
[1760369407240,3.12533529,4119.3,4119.2,0.8507]
[1760369407538,3.2078,4119.6,4119.5,1.62935]
[1760369407837,0.00240032,4119.7,4119.6,0.8507]
[1760369408031,3.21020032,4119.7,4119.6,0.8507]
[1760369408434,0.00240032,4119.7,4119.6,0.8507]
[1760369409032,0.00240032,4119.7,4119.6,1.0997]
[1760369409540,0.00240032,4119.7,4119.6,4.3075]
[1760369410036,3.2078,4121.2,4120.5,0.3421]
[1760369410242,3.2078,4121.2,4121.1,1.28708]
[1760369410537,3.2078,4121.2,4121.1,1.53608]
[1760369410931,3.2078,4121.2,4121.1,1.53816962]
[1760369410932,3.21008857,4121.2,4121.1,1.53816962]
[1760369411334,0.00228857,4121.2,4121.1,1.53816962]
[1760369412337,3.2078,4122.2,4122.1,0.43627]
[1760369412537,0.43626,4122.3,4122.1,0.8507]
[1760369412738,0.43626,4122.3,4122.1,1.28697]
[1760369412934,0.1821,4122.6,4122.1,1.28697]
[1760369412935,0.43624,4122.5,4122.2,0.8507]
[1760369413136,0.43625,4122.4,4122.1,0.43627]
[1760369413336,0.43899624,4122.4,4122.2,0.8507]
[1760369413734,0.43899624,4122.4,4122.1,0.43627]
[1760369413934,0.43899624,4122.4,4122.0,0.5911]
[1760369413935,0.00274624,4122.4,4122.3,1.28695]
[1760369414446,3.2078,4124.0,4123.5,0.3421]
[1760369414635,3.2078,4124.0,4123.7,0.8507]
[1760369414831,0.43609,4123.8,4123.6,0.249]
[1760369415040,0.1849,4123.7,4123.6,0.249]
[1760369415243,0.43609,4123.8,4123.6,0.249]
[1760369415438,0.00273052,4123.7,4123.6,0.249]
[1760369415938,0.00273052,4123.7,4123.6,1.1483]
[1760369416646,0.00273052,4123.7,4123.6,0.8993]
[1760369416944,0.16583052,4123.7,4123.3,1.1483]
[1760369417144,3.2078,4123.5,4123.4,0.8993]
[1760369418738,3.2078,4123.5,4123.0,0.3421]
[1760369418944,3.2078,4123.5,4123.1,0.8993]
[1760369419149,0.43614,4123.4,4123.2,0.8993]
[1760369419336,0.43614,4123.4,4123.2,0.43615]
[1760369419545,3.2078,4123.5,4123.3,0.43614]
[1760369419848,3.2078,4123.5,4123.0,0.3421]
[1760369419849,3.2078,4123.5,4123.4,0.8993]
[1760369420745,0.00273052,4123.7,4123.2,0.249]
[1760369420746,0.00273052,4123.7,4123.6,0.8993]
[1760369421241,3.2078,4124.5,4124.4,1.33533]
[1760369421441,3.2078,4124.5,4124.4,1.1483]
[1760369422249,3.20953259,4124.5,4124.4,0.90168631]
[1760369423339,3.20953259,4124.5,4124.4,0.00238631]
[1760369423540,3.20953259,4124.5,4124.4,0.90168631]
[1760369423740,3.20953259,4124.5,4124.4,0.00238631]
[1760369424241,3.20953259,4124.5,4122.4,1.0906]
[1760369424242,1.09033,4123.5,4122.5,3.5499]
[1760369424445,3.2078,4122.7,4122.5,0.3421]
[1760369424650,3.64402,4122.7,4122.6,1.1483]
[1760369425240,0.43619,4122.9,4122.8,0.8993]
[1760369426855,0.43615,4123.3,4123.1,0.8993]
[1760369427246,0.43615,4123.3,4123.2,0.8993]
[1760369429048,0.4362,4122.8,4122.7,0.8993]
[1760369429547,3.2078,4122.9,4122.8,0.8993]
[1760369430851,3.64399,4122.9,4122.8,0.8993]
[1760369431351,3.2078,4123.4,4123.1,0.8993]
[1760369431553,3.2078,4123.4,4123.3,1.33545]
[1760369431754,3.2078,4124.0,4123.9,1.33538]
[1760369431955,0.00173259,4124.5,4124.4,0.8993]
[1760369432558,0.00173259,4124.5,4124.4,0.249]
[1760369432559,3.20953259,4124.5,4124.4,0.249]
[1760369432751,3.20953259,4124.5,4124.4,1.1483]
[1760369434052,3.20953259,4124.5,4124.4,0.8993]
[1760369434250,0.43609,4123.8,4123.7,0.8993]
[1760369434451,0.43615,4123.3,4123.2,0.8993]
[1760369435051,3.2078,4123.8,4123.6,0.8993]
[1760369435052,0.43611,4123.7,4123.6,0.8993]
[1760369435258,3.2078,4123.8,4123.7,0.8993]
[1760369435847,0.249,4124.2,4124.1,0.43606]
[1760369436160,3.2078,4124.3,4124.2,0.8993]
[1760369436349,3.2078,4124.3,4124.2,1.1483]
[1760369438762,0.00173259,4124.5,4124.2,1.1483]
[1760369438763,0.00173259,4124.5,4124.4,0.8993]
[1760369440751,0.00173259,4124.5,4124.4,1.1483]
[1760369442465,3.2078,4125.5,4125.1,0.8993]
[1760369442660,1.0042243,4125.4,4125.3,0.8993]
[1760369442960,0.43601,4124.7,4124.5,1.69731]
[1760369443268,1.08985,4125.3,4124.1,1.33536]
[1760369443269,0.43605,4124.2,4124.1,1.33536]
[1760369443457,0.43835518,4124.2,4124.1,0.8993]
[1760369443763,0.1675,4124.1,4124.0,0.249]
[1760369443956,3.94399924,4124.1,4124.0,0.249]
[1760369444162,3.94399924,4124.1,4123.5,0.362]
[1760369444163,0.4361,4123.7,4123.5,1.2613]
[1760369444457,7.04307723,4123.6,4123.0,0.362]
[1760369444661,0.1675,4123.4,4123.0,1.5103]
[1760369444857,0.43616,4123.2,4123.0,1.5103]
[1760369445064,0.56869924,4123.1,4123.0,1.5103]
[1760369445264,0.56869924,4123.1,4123.0,1.2613]
[1760369445864,3.2078,4123.6,4123.5,1.1784]
[1760369446167,3.77679499,4123.6,4123.5,1.1784]
[1760369446365,0.56899499,4123.6,4123.5,1.1784]
[1760369446559,3.21010518,4124.2,4124.1,0.8296]
[1760369446760,0.57123656,4124.2,4124.1,0.8296]
[1760369446964,0.00230518,4124.2,4124.1,0.8296]
[1760369447160,3.2078,4124.9,4124.8,1.26559]
[1760369447465,3.77658102,4124.9,4124.8,1.51459]
[1760369448068,3.77894731,4124.9,4124.8,0.8296]
[1760369448366,0.43601,4124.6,4124.5,1.2139]
[1760369448566,0.56878102,4124.6,4124.3,0.8651]
[1760369448763,7.15382693,4124.9,4124.5,0.3565]
[1760369448764,3.21016629,4124.9,4124.5,0.3565]
[1760369448960,0.56848725,4124.8,4124.5,0.3565]
[1760369449161,3.21016629,4124.9,4124.6,1.30111]
[1760369449162,0.56848725,4124.7,4124.6,1.30111]
[1760369449468,0.56848725,4124.7,4124.6,1.1141]
[1760369449659,0.1373,4124.5,4123.5,3.5566]
[1760369449959,0.1373,4124.5,4123.9,0.43608]
[1760369449960,0.43607,4124.1,4123.9,0.43608]
[1760369450160,0.43607,4124.1,4123.6,0.249]
[1760369450161,6.79829233,4124.4,4124.2,0.43604]
[1760369450359,6.79829233,4124.4,4124.3,0.8651]
[1760369450360,3.64383,4124.4,4124.3,0.8651]
[1760369450563,4.2124638,4124.4,4124.3,0.8651]
[1760369450755,3.7764338,4124.4,4124.3,0.8651]
[1760369451460,3.7764338,4124.4,4124.3,1.1141]
[1760369452558,0.4361,4123.7,4123.6,0.8651]
[1760369452758,3.2078,4123.7,4123.3,0.43614]
[1760369453065,0.43605,4124.2,4123.6,0.8651]
[1760369453266,0.56866903,4124.1,4124.0,1.2216]
[1760369453458,0.56866903,4124.1,4124.0,1.65767]
[1760369453663,3.2078,4124.3,4124.2,0.8651]
[1760369453863,3.77643076,4124.3,4124.2,1.1141]
[1760369455265,0.43605,4124.2,4124.0,0.3565]
[1760369455462,0.43605,4124.2,4123.7,0.8651]
[1760369455463,0.43609,4123.8,4123.7,0.8651]
[1760369455664,3.64389,4123.8,4123.7,0.8651]
[1760369455969,4.21270879,4123.8,4123.7,0.8651]
[1760369456165,3.2078,4123.8,4123.7,0.8651]
[1760369456967,0.43617,4123.1,4123.0,0.8651]
[1760369457162,3.2078,4123.1,4122.7,1.1141]
[1760369457371,0.43619,4122.9,4122.8,1.3013]
[1760369457560,3.2078,4123.1,4123.0,0.3565]
[1760369457761,3.2078,4123.1,4123.0,1.4706]
[1760369457958,3.2078,4123.1,4123.0,1.1141]
[1760369458359,3.2078,4123.1,4123.0,0.8651]
[1760369458665,3.2078,4123.1,4122.6,0.0031225]
[1760369458666,0.57351,4122.7,4122.6,0.0031225]
[1760369458862,1.14436418,4122.7,4122.6,0.0031225]
[1760369459062,4.36033466,4122.7,4122.6,0.0031225]
[1760369459569,3.64398,4123.1,4122.8,0.8651]
[1760369459760,0.1373,4122.9,4122.6,0.0031225]
[1760369460068,0.4362,4122.8,4122.7,0.8651]
[1760369460269,0.43619,4123.0,4122.8,0.4362]
[1760369460459,3.2078,4123.1,4123.0,1.2216]
[1760369460662,3.64397,4123.1,4123.0,1.2216]
[1760369462669,0.43619,4122.9,4122.7,0.8651]
[1760369463262,0.43619,4122.9,4122.8,0.8651]
[1760369464067,1.09046,4123.0,4122.6,0.0031225]
[1760369464270,0.43621,4122.7,4122.6,0.8682225]
[1760369464962,3.2078,4123.1,4122.6,0.0031225]
[1760369465167,3.64397,4123.1,4123.0,0.3565]
[1760369465469,3.64397,4123.1,4123.0,1.2216]
[1760369465867,3.2078,4123.1,4123.0,1.2216]
[1760369466774,0.43621,4122.7,4122.6,0.8682225]
[1760369466976,4.29823,4123.1,4123.0,0.3565]
[1760369466977,3.2078,4123.1,4123.0,0.3565]
[1760369467169,3.64397,4123.1,4123.0,0.8651]
[1760369467368,0.43621,4122.8,4122.7,0.8651]
[1760369467569,0.43621,4122.8,4122.6,0.0031225]
[1760369467772,0.1373,4122.7,4122.6,0.0031225]
[1760369467967,3.62473368,4122.8,4122.6,0.0031225]
[1760369468173,0.43621,4122.8,4122.7,0.8651]
[1760369468376,0.43619,4122.9,4122.7,0.8651]
[1760369468575,0.4362,4122.8,4122.7,0.8651]
[1760369469074,3.64397,4123.1,4123.0,0.3565]
[1760369469375,3.64397,4123.1,4123.0,1.2216]
[1760369469869,3.64397,4123.1,4121.4,1.73874759]
[1760369469870,0.1373,4122.9,4121.7,0.8651]
[1760369470075,0.43631,4121.8,4121.7,0.8651]
[1760369470269,3.2078,4121.9,4121.5,0.3565]
[1760369470471,3.2078,4121.9,4121.8,0.43631]
[1760369470778,0.43622,4122.6,4122.5,0.3565]
[1760369470978,0.43843289,4122.6,4122.5,1.22456696]
[1760369471279,0.57573289,4122.6,4122.5,0.00296696]
[1760369471476,0.00221289,4122.6,4122.5,1.22456696]
[1760369473274,0.00221289,4122.6,4122.5,1.47356696]
[1760369473674,0.00221289,4122.6,4122.5,5.11759696]
[1760369474070,3.2078,4124.0,4123.6,0.8651]
[1760369474273,3.2078,4124.5,4124.4,0.8651]
[1760369474673,3.2078,4124.5,4124.4,1.1141]
[1760369474872,3.2078,4125.0,4124.9,0.8651]
[1760369475175,3.21009498,4125.0,4124.9,0.8651]
[1760369477673,3.21009498,4125.0,4124.5,0.3565]
[1760369477674,3.21009498,4125.0,4124.7,0.43599]
[1760369477880,3.21009498,4125.0,4124.8,0.43599]
[1760369478081,3.21009498,4125.0,4124.9,0.8238]
[1760369478578,0.00229498,4125.0,4124.9,0.8238]
[1760369479178,0.43587,4125.9,4125.5,0.3535]
[1760369479378,3.2078,4126.0,4125.6,0.8238]
[1760369479783,0.43584,4126.2,4126.0,0.3535]
[1760369479976,0.43584,4126.2,4126.1,0.8238]
[1760369480181,0.43589,4125.7,4125.6,0.8238]
[1760369480482,0.43589,4125.7,4125.6,1.07594903]
[1760369481479,3.2078,4126.0,4125.8,0.8238]
[1760369481678,0.43589,4125.8,4125.7,0.8238]
[1760369482386,3.64367,4126.0,4125.7,0.8238]
[1760369482579,3.2078,4126.0,4125.9,0.43587]
[1760369482779,0.43586,4126.1,4126.0,1.1773]
[1760369485091,0.002712,4126.2,4126.1,0.8238]
[1760369486590,0.438552,4126.2,4126.1,1.0728]
[1760369487091,1.08942,4126.9,4126.1,1.0728]
[1760369487294,2.90514918,4129.6,4127.6,10.89241]
[1760369487295,0.8203,4129.4,4127.6,10.89241]
[1760369487494,0.3427,4129.5,4129.3,0.43551]
[1760369487791,0.3427,4129.5,4129.4,0.25]
[1760369488194,0.34477753,4129.5,4129.4,0.00287428]
[1760369488994,0.3427,4130.0,4129.9,0.43545]
[1760369489196,0.3427,4131.0,4130.4,0.4354]
[1760369489396,0.3427,4131.0,4130.9,0.43534]
[1760369489600,1.163,4131.0,4130.9,3.64314]
[1760369490089,0.8203,4131.4,4131.2,0.43531]
[1760369490297,0.22,4133.3,4132.6,0.43516]
[1760369490485,0.00266924,4132.8,4132.7,3.2078]
[1760369490691,0.00266924,4132.8,4132.6,0.0019068]
[1760369490692,0.8203,4132.7,4132.6,0.0019068]
[1760369490989,1.0713,4132.7,4132.6,0.0019068]
[1760369491185,0.8203,4132.7,4132.6,0.0019068]
[1760369491785,0.00266924,4132.8,4132.6,0.0019068]
[1760369491988,0.82296924,4132.8,4132.7,3.2078]
[1760369492789,0.00266924,4132.8,4132.7,3.64295]
[1760369492991,0.00266924,4132.8,4132.7,4.08585]
[1760369493386,0.00266924,4132.8,4132.7,3.4588]
[1760369493586,0.82296924,4132.8,4132.7,3.4588]
[1760369493785,0.00266924,4132.8,4132.7,3.9017]
[1760369493995,0.22,4133.3,4132.7,3.9017]
[1760369494200,0.22,4133.3,4133.2,3.6507]
[1760369494691,0.22,4133.3,4133.2,3.9017]
[1760369494895,1.0403,4133.3,4133.2,3.2078]
[1760369495196,0.22279584,4133.3,4133.2,3.6507]
[1760369495498,0.8203,4134.1,4133.2,3.6507]
[1760369495699,0.8203,4134.1,4133.9,3.2078]
[1760369495905,0.8203,4134.6,4133.9,3.2078]
[1760369496194,1.163,4135.5,4134.6,0.4429]
[1760369496393,1.163,4135.5,4135.0,3.2078]
[1760369496394,0.8203,4135.2,4135.0,3.2078]
[1760369496592,0.8203,4135.1,4135.0,3.2078]
[1760369496797,0.00259211,4135.5,4135.1,0.4429]
[1760369496999,0.022,4137.8,4135.7,10.87087]
[1760369497190,0.8203,4137.6,4137.3,3.2078]
[1760369497397,0.4057317,4137.5,4136.8,3.2078]
[1760369497603,0.8203,4137.2,4136.8,3.2078]
[1760369497897,0.43469,4137.2,4136.8,3.2078]
[1760369498096,0.43738087,4137.2,4136.8,3.21024781]
[1760369498398,0.0630317,4137.0,4136.8,3.21024781]
[1760369498592,0.8203,4136.9,4136.8,3.21024781]
[1760369499094,4.0281,4136.9,4136.8,0.00244781]
[1760369499299,4.2801,4136.9,4136.8,7.81e-06]
[1760369499494,4.2801,4136.9,4133.7,1.08761]
[1760369499495,1.08682,4136.8,4135.7,3.2078]
[1760369499697,0.8203,4135.9,4135.7,3.2078]
[1760369499896,0.43482,4136.0,4135.7,3.2078]
[1760369500103,1.163,4135.8,4135.7,3.2078]
[1760369500501,1.2260317,4135.8,4135.7,3.20961213]
[1760369501592,1.2260317,4135.8,4135.7,0.00181213]
[1760369501999,7.5844512,4135.8,4135.7,0.00181213]
[1760369502396,0.43484,4135.7,4134.6,3.2078]
[1760369502603,0.8203,4134.7,4134.6,3.2078]
[1760369502809,1.0713,4134.7,4134.6,3.2078]
[1760369503205,0.8203,4134.7,4134.6,3.2078]
[1760369503503,0.4057317,4135.2,4134.6,3.21060539]
[1760369503702,0.0630317,4134.9,4134.6,0.00280539]
[1760369503906,1.25524,4134.8,4134.7,3.2078]
[1760369504300,1.25524,4134.8,4134.6,0.00280539]
[1760369504301,0.8203,4134.7,4134.6,0.00280539]
[1760369504500,0.8833317,4134.9,4134.6,0.00280539]
[1760369504702,0.8203,4134.7,4134.6,0.00280539]
[1760369505303,1.0723,4134.7,4134.6,0.00280539]
[1760369505514,4.16156781,4134.7,4134.6,0.00280539]
[1760369505705,4.22459951,4134.7,4134.6,0.00280539]
[1760369506009,1.37929,4134.3,4134.2,3.2078]
[1760369506210,1.63029,4134.3,4134.2,3.2078]
[1760369506914,1.69582062,4134.3,4134.2,3.20966395]
[1760369507904,1.69582062,4134.3,4133.1,1.36701]
[1760369507905,3.18947485,4134.3,4133.6,3.8854]
[1760369508106,0.06553062,4134.3,4134.2,3.8854]
[1760369508407,0.3901,4136.5,4135.5,0.6776]
[1760369508610,0.3901,4136.5,4135.1,1.08726]
[1760369508611,0.43476,4136.5,4136.3,3.2078]
[1760369508807,0.9392,4136.4,4136.3,3.2078]
[1760369509108,0.9392,4136.7,4136.3,3.2078]
[1760369509307,0.9392,4136.7,4136.3,3.2095212]
[1760369509308,0.94138821,4136.7,4136.3,3.2095212]
[1760369509614,0.00218821,4136.7,4136.4,0.6776]
[1760369509911,0.00218821,4136.7,4136.5,0.43475]
[1760369510109,0.43692821,4136.7,4136.4,0.6776]
[1760369510411,0.00218821,4136.7,4136.4,0.6776]
[1760369510706,0.43692821,4136.7,4136.3,3.2095212]
[1760369510905,0.00218821,4136.7,4136.3,3.6442912]
[1760369511106,0.00218821,4136.7,4136.5,0.43475]
[1760369511307,0.00218821,4136.7,4136.5,0.252]
[1760369511515,0.43692821,4136.7,4136.5,0.252]
[1760369512009,0.00218821,4136.7,4136.5,0.68675]
[1760369512205,0.43474,4136.6,4136.5,0.252]
[1760369512705,1.37394,4136.6,4136.5,0.252]
[1760369512909,0.43477,4136.4,4136.3,3.2095212]
[1760369513103,1.37397,4136.4,4136.3,3.2095212]
[1760369514013,0.9392,4136.4,4136.3,3.2095212]
[1760369515008,0.00218821,4136.7,4136.6,0.6776]
[1760369515406,0.00218821,4136.7,4136.6,0.9286]
[1760369518220,0.022,4137.8,4136.9,1.08679]
[1760369518406,0.022,4137.8,4137.7,3.2078]
[1760369518609,0.022,4137.8,4137.7,3.8832]
[1760369518814,0.022,4137.8,4137.7,3.2078]
[1760369519216,0.02435597,4137.8,4137.7,3.2078]
[1760369519515,0.02435597,4137.8,4137.1,3.2078]
[1760369519516,0.9392,4137.2,4137.1,3.2078]
[1760369519714,0.9392,4137.2,4137.1,3.14226937]
[1760369520319,1.1902,4137.2,4137.1,3.14226937]